bitfinex-derivatives/quotes_SOLF0:USTF0_20251209
["timestamp","ask_amount","ask_price","bid_price","bid_amount"]
[1765316840766,0.68114342,138.38,138.34,3.3]
[1765316841363,0.63,138.35,138.28,3.3]
[1765316841565,0.68539414,138.34,138.28,3.3]
[1765316841768,61.4,138.33,138.28,3.3]
[1765316842066,67.9056,138.33,138.28,3.3]
[1765316842270,0.63,138.32,138.28,3.3]
[1765316842462,61.4,138.32,138.28,3.3]
[1765316842864,6.5071,138.3,138.25,3.3]
[1765316843060,0.05385185,138.29,138.22,1.25831646]
[1765316843266,0.05385185,138.29,138.23,3.3]
[1765316843664,0.63,138.27,138.19,9.812]
[1765316843865,0.05392105,138.24,138.19,3.3]
[1765316844676,61.42,138.23,138.19,3.3]
[1765316845165,101.2006,138.33,138.19,3.3]
[1765316845166,0.64,138.31,138.21,104.5312]
[1765316845469,101.1949,138.34,138.16,1.25899931]
[1765316845470,0.64,138.25,138.18,3.25]
[1765316845672,0.64,138.24,138.18,3.25]
[1765316845859,101.2482,138.27,138.18,3.25]
[1765316845860,61.42,138.23,138.18,3.25]
[1765316846060,62.06,138.23,138.18,3.25]
[1765316846266,0.04635544,138.22,138.19,0.04582767]
[1765316847176,0.04635544,138.22,138.19,3.29582767]
[1765316847379,0.04635544,138.22,138.19,0.04582767]
[1765316847871,0.64,138.21,138.14,1.2592271]
[1765316848074,0.64,138.21,138.11,3.25]
[1765316848075,0.64,138.2,138.11,3.25]
[1765316848465,101.9345,138.2,138.11,9.7658]
[1765316848662,0.64,138.15,138.14,0.02309407]
[1765316848866,61.46,138.15,138.13,0.02309407]
[1765316849074,62.1,138.15,138.06,4.50995655]
[1765316849269,62.1,138.15,138.07,3.25]
[1765316849673,6.515,138.13,138.07,3.25]
[1765316849873,0.64,138.12,138.07,3.25]
[1765316850075,0.04955412,138.11,138.07,3.25]
[1765316851080,7.1523,138.19,138.09,3.25]
[1765316851269,61.48,138.18,138.09,3.25]
[1765316851981,0.04635202,138.15,138.12,3.29955412]
[1765316852276,0.04635202,138.15,138.12,0.04955412]
[1765316852783,0.68635202,138.15,138.12,0.04955412]
[1765316853170,102.01755202,138.15,138.12,0.04955412]
[1765316853585,0.64,138.14,138.12,0.04955412]
[1765316854482,7.1549,138.14,138.12,0.04955412]
[1765316854781,61.5,138.13,138.12,0.04955412]
[1765316855478,62.14,138.13,138.12,0.04955412]
[1765316855673,62.14,138.13,138.08,3.25]
[1765316855879,61.5,138.15,138.08,3.25]
[1765316856475,61.5,138.15,138.1,3.25]
[1765316856978,61.5,138.15,138.03,101.416]
[1765316856979,6.5154,138.13,138.07,3.25]
[1765316857181,0.05085186,138.11,138.07,3.25]
[1765316859478,0.69085186,138.11,138.07,3.25]
[1765316859680,0.05085186,138.11,138.05,9.7685]
[1765316859878,0.05297099,138.09,138.06,3.25]
[1765316862387,0.05297099,138.09,138.03,3.25]
[1765316862775,0.64,138.07,138.0,3.25]
[1765316863073,0.64,138.07,137.98,6.5219]
[1765316863074,0.69268866,138.05,137.97,3.25]
[1765316863275,6.5195,138.04,137.97,3.25]
[1765316863474,0.04851206,138.02,137.97,3.25]
[1765316863672,6.5224,137.98,137.95,4.64302762]
[1765316863872,6.57650376,137.98,137.95,3.38211237]
[1765316864172,61.61410376,137.98,137.95,6.63211237]
[1765316864392,0.05410376,137.98,137.95,6.63211237]
[1765316864695,0.64,137.95,137.88,3.25]
[1765316864897,0.64,137.95,137.83,101.5596]
[1765316864898,0.68820033,137.93,137.85,3.25]
[1765316865293,0.04820033,137.93,137.85,104.7985]
[1765316865596,0.04820033,137.93,137.88,3.25]
[1765316865900,0.64,137.88,137.81,3.25]
[1765316866093,0.04723874,137.86,137.81,3.25]
[1765316866696,102.1923,137.85,137.77,3.25]
[1765316866995,0.05481737,137.82,137.77,3.25]
[1765316867199,0.05481737,137.82,137.74,1.26281412]
[1765316867200,0.64,137.8,137.74,1.26281412]
[1765316867389,0.64,137.78,137.72,3.42854486]
[1765316867698,61.63005152,137.78,137.72,6.67854486]
[1765316867898,0.05005152,137.78,137.72,6.67854486]
[1765316868196,101.613,137.77,137.72,3.42854486]
[1765316868388,0.64,137.75,137.72,3.42854486]
[1765316868790,0.68579686,137.75,137.72,3.42854486]
[1765316868993,0.64,137.73,137.72,4.486e-05]
[1765316869193,102.28,137.73,137.65,3.25]
[1765316869392,0.04909375,137.7,137.65,3.25]
[1765316869705,0.64,137.77,137.69,3.25]
[1765316869998,108.7856,137.77,137.69,3.25]
[1765316870202,0.64,137.73,137.65,3.25]
[1765316870501,61.62,137.74,137.67,3.25]
[1765316870702,102.2838,137.73,137.69,0.04965081]
[1765316870896,0.69311938,137.72,137.69,0.04965081]
[1765316871101,102.3049,137.7,137.59,6.5403]
[1765316871398,102.3049,137.7,137.6,4.5140526]
[1765316871399,102.3291,137.67,137.6,4.5140526]
[1765316871606,7.1768,137.67,137.57,3.25]
[1765316871798,7.1768,137.67,137.57,4.51439705]
[1765316872099,0.04940869,137.63,137.57,4.51439705]
[1765316872302,163.9475,137.7,137.61,3.25]
[1765316872503,0.64,137.67,137.57,4.51439705]
[1765316872805,0.64,137.66,137.57,3.25]
[1765316873101,113.45179504,137.72,137.59,101.7396]
[1765316873306,0.05278833,137.67,137.64,0.04809576]
[1765316873602,0.64,137.65,137.58,3.25]
[1765316873799,61.66,137.66,137.59,3.25]
[1765316873997,61.66,137.66,137.58,101.7466]
[1765316873998,102.2608,137.76,137.65,3.25]
[1765316874206,61.66,137.75,137.66,3.25]
[1765316874388,61.66,137.75,137.67,3.25]
[1765316874592,0.04674334,137.72,137.67,3.25]
[1765316874803,7.191,137.8,137.7,3.2]
[1765316875106,0.66,137.78,137.7,3.2]
[1765316875307,61.66,137.79,137.71,3.2]
[1765316875509,61.66,137.79,137.72,3.2]
[1765316875800,0.05295556,137.77,137.74,3.24882254]
[1765316876306,101.5622,137.84,137.75,3.2]
[1765316876307,61.68,137.84,137.75,3.2]
[1765316877295,0.70888816,137.81,137.78,0.05201986]
[1765316877604,0.66,137.8,137.78,0.05201986]
[1765316878703,102.2566,137.79,137.71,3.2]
[1765316879006,163.9366,137.79,137.71,3.2]
[1765316879502,102.2667,137.78,137.67,9.7368]
[1765316879694,102.2667,137.78,137.71,0.04975824]
[1765316879695,0.04788999,137.74,137.71,0.04975824]
[1765316880201,61.68,137.79,137.72,3.2]
[1765316880395,163.9628,137.85,137.74,3.2]
[1765316880597,6.5302,137.81,137.74,3.2]
[1765316880792,0.71,137.83,137.74,3.2]
[1765316881198,0.71,137.83,137.77,0.05390899]
[1765316881199,0.0535189,137.8,137.77,0.05390899]
[1765316881501,0.0535189,137.8,137.77,3.25390899]
[1765316881810,0.0535189,137.8,137.77,0.05390899]
[1765316882005,102.3537189,137.8,137.77,0.05390899]
[1765316882309,101.6178,137.76,137.69,3.2]
[1765316882605,101.6403,137.73,137.64,3.2]
[1765316882800,101.6475,137.72,137.64,3.2]
[1765316882996,101.6403,137.73,137.64,3.2]
[1765316883203,0.05320158,137.7,137.67,0.04373924]
[1765316883401,101.6853,137.67,137.58,3.2]
[1765316883609,102.3678,137.64,137.55,1.26453488]
[1765316883793,101.7188,137.63,137.53,3.2]
[1765316883997,101.7249,137.62,137.53,3.2]
[1765316884207,163.4007,137.65,137.54,3.2]
[1765316884499,13.0672,137.74,137.6,3.2]
[1765316884500,101.6583,137.71,137.6,3.2]
[1765316884706,61.7,137.71,137.63,3.2]
[1765316884908,61.7,137.71,137.64,3.2]
[1765316885116,61.7,137.71,137.65,3.2]
[1765316885295,61.7,137.71,137.6,104.9343]
[1765316885296,62.41,137.71,137.6,104.9343]
[1765316885501,0.05338966,137.67,137.64,3.25089419]
[1765316886003,61.7,137.71,137.65,3.26]
[1765316886810,61.7,137.71,137.64,0.05089419]
[1765316887010,0.04883516,137.69,137.64,0.05089419]
[1765316887204,102.4038,137.66,137.57,3.26]
[1765316887404,102.418,137.64,137.53,1.26481064]
[1765316887600,61.72,137.65,137.57,3.26]
[1765316887800,61.72,137.65,137.59,105.001]
[1765316888013,61.72,137.69,137.61,3.26]
[1765316888316,102.4176,137.64,137.53,4.52481064]
[1765316888514,62.43,137.64,137.55,3.26]
[1765316888712,61.72,137.64,137.58,3.26]
[1765316889012,101.6843,137.67,137.59,3.26]
[1765316889215,101.6843,137.67,137.53,1.26481064]
[1765316889216,108.2857,137.59,137.53,1.26481064]
[1765316889403,0.05080928,137.57,137.5,3.26]
[1765316889606,0.05080928,137.57,137.52,3.26]
[1765316889816,0.05080928,137.57,137.54,3.26]
[1765316890012,101.6789,137.68,137.54,3.26]
[1765316890013,0.66,137.66,137.56,105.0239]
[1765316890217,0.66,137.64,137.56,3.26]
[1765316890510,102.3834,137.62,137.51,106.32438652]
[1765316890714,0.66,137.62,137.53,105.0467]
[1765316890916,0.0532058,137.59,137.56,0.05250516]
[1765316891120,0.0532058,137.59,137.56,3.31250516]
[1765316891414,0.0532058,137.59,137.56,0.05250516]
[1765316892113,6.5940058,137.59,137.56,0.05250516]
[1765316892315,0.66,137.58,137.56,0.00250516]
[1765316892504,101.8026058,137.59,137.56,0.00250516]
[1765316892505,0.0532058,137.59,137.56,0.00250516]
[1765316892901,0.6632058,137.59,137.56,0.00250516]
[1765316893508,0.0532058,137.59,137.56,3.26250516]
[1765316893920,0.61,137.68,137.59,104.9969]
[1765316894118,61.76,137.69,137.61,3.26]
[1765316894415,101.6924,137.66,137.57,3.26]
[1765316894603,101.6999,137.65,137.57,3.26]
[1765316894801,0.05555713,137.62,137.6,0.05118134]
[1765316895413,0.05555713,137.62,137.53,101.7857]
[1765316895414,0.61,137.61,137.53,3.26]
[1765316895609,101.736,137.6,137.53,3.26]
[1765316895916,101.736,137.6,137.49,163.5712]
[1765316895917,68.9109,137.59,137.5,6.5445]
[1765316896115,61.76,137.59,137.52,3.26]
[1765316896410,0.04664507,137.57,137.52,3.26]
[1765316898014,0.65664507,137.57,137.51,1.26492558]
[1765316898214,101.7953,137.52,137.44,3.26]
[1765316898517,0.04731522,137.49,137.46,3.26]
[1765316898822,0.0483129,137.49,137.45,3.26]
[1765316899322,0.0483129,137.49,137.4,3.26]
[1765316899612,0.61,137.49,137.4,3.26]
[1765316899816,0.05010148,137.46,137.4,3.26]
[1765316900306,102.4633,137.45,137.36,6.73372242]
[1765316900501,0.0478472,137.42,137.36,6.73372242]
[1765316900703,0.0478472,137.42,137.39,9.8098]
[1765316900904,0.0478472,137.42,137.4,3.26]
[1765316901106,0.61,137.49,137.4,105.1411]
[1765316901302,62.41,137.48,137.4,3.26]
[1765316901509,102.4616,137.45,137.36,8.00000581]
[1765316901719,102.4616,137.45,137.36,6.73372242]
[1765316901907,0.61,137.45,137.36,108.64422242]
[1765316902107,102.4581,137.45,137.36,6.73372242]
[1765316902311,0.65963832,137.42,137.39,0.05580168]
[1765316902506,62.41,137.41,137.39,0.05580168]
[1765316902914,0.04963832,137.42,137.39,0.05580168]
[1765316903110,61.8,137.41,137.39,0.05580168]
[1765316903415,0.61,137.4,137.39,0.05580168]
[1765316903719,0.61,137.4,137.36,3.47372242]
[1765316903720,2.07,137.4,137.36,3.47372242]
[1765316903922,6.5504,137.39,137.36,3.47372242]
[1765316904223,0.61,137.4,137.36,3.47372242]
[1765316904722,0.04933439,137.39,137.36,3.47372242]
[1765316905634,61.82,137.38,137.36,3.47372242]
[1765316905919,61.86933439,137.39,137.37,9.8807]
[1765316906120,0.63,137.44,137.38,3.33]
[1765316906313,0.63,137.48,137.38,105.227]
[1765316906623,61.84,137.47,137.38,105.227]
[1765316907212,0.63,137.42,137.41,0.05017378]
[1765316907412,61.84,137.42,137.41,0.05017378]
[1765316908316,61.88876034,137.44,137.41,0.05017378]
[1765316908917,0.04876034,137.44,137.41,0.05017378]
[1765316909124,61.88876034,137.44,137.41,0.05017378]
[1765316909424,0.63,137.43,137.41,0.05017378]
[1765316909613,0.63,137.43,137.36,3.47372242]
[1765316909813,0.63,137.43,137.26,101.985]
[1765316909814,101.9064,137.37,137.24,102.002]
[1765316910018,61.84,137.36,137.28,3.33]
[1765316910219,101.8723,137.42,137.3,3.33]
[1765316910415,61.86,137.37,137.3,3.33]
[1765316910613,0.05595651,137.35,137.3,3.33]
[1765316911020,101.8426,137.46,137.34,3.33]
[1765316911220,101.8928,137.39,137.3,3.33]
[1765316911427,163.7543,137.39,137.3,3.33]
[1765316911817,101.9065,137.37,137.3,3.33]
[1765316912129,0.05567737,137.35,137.32,0.05063116]
[1765316912329,68.4129,137.34,137.32,0.05063116]
[1765316912514,101.9444,137.32,137.22,3.33]
[1765316912710,101.9428,137.33,137.23,3.33]
[1765316912914,101.9153,137.36,137.25,105.3249]
[1765316913132,61.86,137.35,137.26,3.33]
[1765316913320,68.412,137.35,137.27,3.33]
[1765316913528,0.04759863,137.32,137.27,3.33]
[1765316913728,0.04759863,137.32,137.29,3.33]
[1765316914416,101.99099863,137.32,137.22,4.59769029]
[1765316914624,163.7883,137.35,137.25,3.33]
[1765316914625,61.86,137.35,137.25,3.33]
[1765316914812,61.88,137.37,137.29,3.33]
[1765316915014,101.9325,137.34,137.25,3.33]
[1765316915314,61.88,137.37,137.28,3.33]
[1765316915520,7.36313559,137.45,137.34,3.33]
[1765316915724,61.88,137.43,137.34,3.33]
[1765316915930,0.0553882,137.4,137.38,0.04763968]
[1765316916424,101.8059,137.51,137.39,105.2171]
[1765316916619,170.2378,137.5,137.4,3.33]
[1765316917026,101.8204,137.49,137.4,3.33]
[1765316917231,101.833,137.47,137.36,3.33]
[1765316917433,101.8277,137.48,137.37,101.9033]
[1765316917618,101.7966,137.52,137.41,3.33]
[1765316917826,101.7674,137.56,137.45,3.33]
[1765316918027,248.18940601,137.58,137.47,3.33]
[1765316918323,248.18940601,137.58,137.48,3.33]
[1765316918324,208.31500601,137.58,137.48,3.33]
[1765316918533,310.06900601,137.58,137.48,3.33]
[1765316918717,0.05323943,137.54,137.52,0.04926623]
[1765316919527,0.05323943,137.54,137.44,108.3985]
[1765316919528,101.7986,137.52,137.44,3.33]
[1765316919733,61.88,137.53,137.45,101.8451]
[1765316919922,61.88,137.53,137.46,3.33]
[1765316920519,0.04635682,137.51,137.48,3.38282669]
[1765316921019,61.88,137.58,137.5,9.8748]
[1765316921218,61.88,137.58,137.51,3.33]
[1765316921825,0.05092377,137.56,137.53,0.04983569]
[1765316922726,101.81762377,137.56,137.53,0.04983569]
[1765316922927,0.05092377,137.56,137.53,0.04983569]
[1765316923636,6.543,137.54,137.53,0.04983569]
[1765316924937,68.403,137.54,137.53,0.04983569]
[1765316925328,61.86,137.54,137.53,0.04983569]
[1765316926132,165.1076,137.54,137.44,3.33]
[1765316926327,163.6476,137.54,137.44,3.33]
[1765316926730,6.5441,137.52,137.45,3.33]
[1765316927132,0.04648402,137.5,137.47,3.38039589]
[1765316927535,0.04648402,137.5,137.47,0.05039589]
[1765316927831,101.8329,137.47,137.38,3.33]
[1765316928146,101.8031,137.51,137.4,3.33]
[1765316928334,6.5431,137.54,137.45,3.33]
[1765316928528,61.86,137.55,137.45,3.33]
[1765316928829,0.05539488,137.51,137.49,0.04957732]
[1765316929034,0.05539488,137.51,137.5,3.33]
[1765316929424,0.05539488,137.51,137.49,0.04957732]
[1765316931133,6.59999488,137.51,137.49,0.04957732]
[1765316932231,0.05539488,137.51,137.49,3.37957732]
[1765316932630,0.05539488,137.51,137.49,0.04957732]
[1765316933133,0.05539488,137.51,137.49,3.37957732]
[1765316934540,61.86,137.55,137.5,3.33]
[1765316935137,61.86,137.55,137.52,3.35]
[1765316935331,101.7174,137.63,137.52,3.35]
[1765316935652,101.80960675,137.58,137.55,0.04972454]
[1765316935827,101.7614,137.57,137.55,0.05529939]
[1765316936237,6.542,137.56,137.55,0.05529939]
[1765316936840,6.59538963,137.58,137.55,0.05529939]
[1765316937137,0.05408963,137.58,137.55,0.05529939]
[1765316937532,101.80798963,137.58,137.55,0.05529939]
[1765316938139,101.7803,137.54,137.46,3.35]
[1765316938338,61.84,137.53,137.46,3.35]
[1765316939243,0.0535493,137.51,137.48,3.40078944]
[1765316940240,61.84,137.53,137.48,3.40078944]
[1765316940443,61.84,137.57,137.5,3.35]
[1765316940736,61.84,137.57,137.42,3.35]
[1765316940737,7.36313559,137.54,137.42,3.35]
[1765316940927,101.829,137.48,137.39,3.35]
[1765316941132,61.84,137.47,137.39,3.35]
[1765316941534,101.767,137.56,137.44,3.35]
[1765316941737,61.84,137.55,137.48,3.35]
[1765316941932,61.84,137.55,137.49,3.35]
[1765316942546,0.05197708,137.53,137.52,3.35]
[1765316943048,61.84,137.55,137.52,3.35]
[1765316943343,61.84,137.59,137.52,3.35]
[1765316944134,0.04661499,137.57,137.54,3.40259272]
[1765316945445,61.84,137.64,137.55,3.21]
[1765316946142,61.84,137.64,137.56,3.21]
[1765316946548,61.84,137.64,137.55,101.7682]
[1765316946549,0.04917503,137.61,137.6,3.21]
[1765316946848,0.04917503,137.61,137.59,3.26569752]
[1765316947247,0.04917503,137.61,137.59,0.05569752]
[1765316948049,103.23837503,137.61,137.49,3.21]
[1765316948246,108.2786,137.6,137.49,3.21]
[1765316949153,0.05337665,137.56,137.53,0.05075114]
[1765316950172,108.2467,137.64,137.53,3.26075114]
[1765316950453,101.7289,137.61,137.49,105.0241]
[1765316950670,163.5605,137.6,137.5,6.5448]
[1765316951142,0.05202179,137.56,137.54,0.05010446]
[1765316951945,6.5432,137.54,137.45,3.21]
[1765316952150,101.7879,137.53,137.45,3.21]
[1765316952745,61.82,137.55,137.45,3.21]
[1765316952941,0.05159425,137.5,137.48,0.04614577]
[1765316953140,0.05146436,137.5,137.48,0.04614577]
[1765316955337,61.87146436,137.5,137.48,0.04614577]
[1765316955544,0.05146436,137.5,137.48,3.25614577]
[1765316956446,0.05146436,137.5,137.48,9.80164577]
[1765316956953,0.05146436,137.5,137.49,3.21]
[1765316957154,0.05146436,137.5,137.48,0.04614577]
[1765316957854,0.05146436,137.5,137.48,3.25614577]
[1765316959754,109.10983559,137.59,137.49,3.21]
[1765316960054,61.84,137.58,137.51,3.21]
[1765316960260,61.84,137.58,137.52,6.5438]
[1765316960455,61.84,137.58,137.52,9.7538]
[1765316960652,61.84,137.58,137.52,3.21]
[1765316960849,0.05303075,137.56,137.55,3.21]
[1765316961259,7.36313559,137.63,137.55,3.21]
[1765316961450,61.84,137.64,137.57,3.21]
[1765316961850,61.84,137.64,137.58,3.21]
[1765316962045,101.6732,137.69,137.61,104.9379]
[1765316962046,61.84,137.69,137.61,104.9379]
[1765316962246,0.04608517,137.66,137.64,3.25648083]
[1765316962556,101.6106,137.77,137.67,3.21]
[1765316962557,61.84,137.77,137.67,3.21]
[1765316962856,163.4518,137.77,137.67,3.21]
[1765316963053,61.84,137.77,137.7,3.21]
[1765316963255,61.82,137.82,137.71,3.21]
[1765316963559,0.05513403,137.78,137.75,3.25889501]
[1765316964957,61.82,137.82,137.76,3.07]
[1765316965162,61.82,137.82,137.75,0.04889501]
[1765316965348,61.82,137.82,137.75,3.11889501]
[1765316965548,61.82,137.82,137.76,3.07]
[1765316965963,0.04616054,137.8,137.76,3.07]
[1765316966357,0.04616054,137.8,137.75,0.04889501]
[1765316966659,0.04616054,137.8,137.75,3.11889501]
[1765316966860,6.57686054,137.8,137.75,0.04889501]
[1765316967452,101.613,137.77,137.75,0.04889501]
[1765316967660,101.6479,137.72,137.64,61.78]
[1765316967857,101.6337,137.74,137.63,3.07]
[1765316968060,101.6254,137.75,137.63,104.7827]
[1765316968061,6.534,137.73,137.63,104.7827]
[1765316968260,61.8,137.76,137.65,3.07]
[1765316968564,0.04873403,137.72,137.69,0.050323]
[1765316969163,0.04873403,137.72,137.69,3.120323]
[1765316969560,0.04873403,137.72,137.69,0.050323]
[1765316970564,0.04873403,137.72,137.69,3.120323]
[1765316971457,0.04873403,137.72,137.69,0.050323]
[1765316971863,0.04873403,137.72,137.69,3.120323]
[1765316972060,101.5754,137.82,137.71,3.07]
[1765316972264,163.3554,137.82,137.71,3.07]
[1765316972667,101.5968,137.79,137.71,3.07]
[1765316973180,0.04918377,137.76,137.74,0.04967482]
[1765316973468,0.05059554,137.76,137.74,0.04967482]
[1765316974072,0.05059554,137.76,137.74,3.11967482]
[1765316974264,61.78,137.82,137.74,104.75047482]
[1765316974565,61.78,137.82,137.75,3.07]
[1765316974970,61.78,137.82,137.78,3.07]
[1765316975178,101.5008,137.92,137.82,3.07]
[1765316975468,0.05429303,137.88,137.86,0.05239621]
[1765316976064,61.76,137.94,137.86,3.12239621]
[1765316976259,61.76,137.94,137.87,3.07]
[1765316976467,101.5013,137.92,137.83,3.07]
[1765316976668,6.5258,137.91,137.83,3.07]
[1765316977070,101.5148,137.9,137.83,3.07]
[1765316977373,61.76,137.94,137.8,6.5305]
[1765316977374,0.04585308,137.88,137.86,3.11794049]
[1765316977567,0.04980532,137.88,137.86,3.11794049]
[1765316978070,0.04980532,137.88,137.87,3.07]
[1765316978271,61.76,137.94,137.87,9.5969]
[1765316978868,61.76,137.94,137.85,6.5282]
[1765316979067,163.2455,137.94,137.84,3.07]
[1765316979263,0.0533421,137.9,137.88,0.0463649]
[1765316979968,6.5796421,137.9,137.88,0.0463649]
[1765316980369,0.0533421,137.9,137.88,0.0463649]
[1765316981369,103.0287421,137.9,137.81,6.53]
[1765316981568,101.5311,137.88,137.8,3.07]
[1765316981769,101.5378,137.87,137.8,3.07]
[1765316981970,6.5281,137.86,137.8,3.07]
[1765316982368,61.72,137.89,137.8,3.07]
[1765316982568,0.04990593,137.86,137.83,0.05147229]
[1765316982765,0.04990593,137.86,137.83,3.12147229]
[1765316983669,0.04990593,137.86,137.83,0.05147229]
[1765316983869,0.04990593,137.86,137.83,3.12147229]
[1765316984575,101.4734,137.96,137.85,3.07]
[1765316984777,61.72,137.94,137.85,3.07]
[1765316985079,6.5257,137.91,137.85,3.07]
[1765316985265,101.5081,137.91,137.81,9.5999]
[1765316985462,101.5221,137.89,137.81,3.07]
[1765316985665,101.5221,137.89,137.85,0.0472216]
[1765316985666,0.0542376,137.87,137.85,0.0472216]
[1765316986578,6.5818376,137.87,137.85,0.0472216]
[1765316987073,101.5541,137.85,137.77,3.07]
[1765316987282,6.53,137.82,137.77,3.07]
[1765316987471,101.5743,137.82,137.77,3.07]
[1765316987673,101.5828,137.81,137.74,61.7]
[1765316988074,6.58606051,137.79,137.76,0.05411]
[1765316988484,0.05476051,137.79,137.76,0.05411]
[1765316990276,61.75476051,137.79,137.76,0.05411]
[1765316990682,163.35556051,137.79,137.76,0.05411]
[1765316991081,6.5318,137.78,137.76,0.05411]
[1765316992275,61.75476051,137.79,137.76,0.05411]
[1765316993076,61.75476051,137.79,137.76,3.12411]
[1765316993982,0.05476051,137.79,137.78,3.07]
[1765316994182,61.72,137.85,137.78,3.07]
[1765316994572,6.5294,137.83,137.78,3.07]
[1765316994777,101.5599,137.84,137.75,6.5327]
[1765316995184,0.05550405,137.81,137.78,0.04653166]
[1765316996081,6.58580405,137.81,137.78,0.04653166]
[1765316996489,0.05550405,137.81,137.78,3.22653166]
[1765316996978,61.72,137.85,137.79,3.18]
[1765316997772,61.72,137.85,137.78,0.04653166]
[1765316997975,6.58357598,137.83,137.78,0.04653166]
[1765316998172,101.5751,137.82,137.78,0.04653166]
[1765316998578,61.72,137.81,137.78,0.04653166]
[1765316998783,6.5308,137.8,137.78,0.04653166]
[1765316999390,61.72,137.81,137.78,0.04653166]
[1765316999876,0.05407598,137.83,137.78,0.04653166]
[1765317000083,0.05407598,137.83,137.78,3.22653166]
[1765317000482,0.05407598,137.83,137.8,9.7105]
[1765317000683,101.521,137.9,137.81,3.18]
[1765317000684,6.5262,137.9,137.81,3.18]
[1765317000875,163.235,137.9,137.81,3.18]
[1765317001191,61.72,137.9,137.83,3.18]
[1765317001781,0.03196286,137.88,137.85,3.22727757]
[1765317002182,0.03196286,137.88,137.85,0.04727757]
[1765317003291,101.4813,137.95,137.85,3.22727757]
[1765317003490,101.4813,137.95,137.85,3.18]
[1765317003491,101.4852,137.94,137.85,3.18]
[1765317003693,101.4926,137.93,137.85,3.18]
[1765317003988,61.7,137.92,137.85,3.18]
[1765317004190,61.7,137.92,137.85,104.7311]
[1765317004393,61.7,137.92,137.87,3.23264889]
[1765317004690,163.2038,137.92,137.87,0.05264889]
[1765317004888,101.5088,137.91,137.87,0.05264889]
[1765317005083,101.5154,137.9,137.87,0.05264889]
[1765317005493,102.9754,137.9,137.76,6.59659086]
[1765317005683,101.5549,137.85,137.76,3.18]
[1765317005882,163.2549,137.85,137.76,3.18]
[1765317006092,163.2549,137.85,137.72,6.59659086]
[1765317006093,6.5309,137.8,137.72,9.7042]
[1765317006397,163.2996,137.79,137.72,3.17]
[1765317006586,163.2996,137.79,137.74,0.04636772]
[1765317006587,0.0526489,137.77,137.74,0.04636772]
[1765317008888,0.0526489,137.77,137.74,3.21636772]
[1765317009092,6.5294,137.83,137.75,9.7026]
[1765317009296,101.5682,137.83,137.75,3.17]
[1765317009493,163.2623,137.84,137.75,3.17]
[1765317009691,101.5811,137.81,137.71,6.59659086]
[1765317009892,101.5811,137.81,137.71,3.17]
[1765317010084,101.5811,137.81,137.75,0.05138722]
[1765317010289,101.5962,137.79,137.75,0.05138722]
[1765317010586,61.7,137.78,137.75,0.05138722]
[1765317011209,163.3064,137.78,137.75,0.05138722]
[1765317011608,6.5323,137.77,137.75,0.05138722]
[1765317012000,101.6265,137.75,137.66,9.76659086]
[1765317012204,6.5346,137.72,137.66,9.7071]
[1765317012508,61.7,137.74,137.66,9.7071]
[1765317013012,0.0459523,137.71,137.69,0.04762968]
[1765317013710,0.0459523,137.71,137.6,6.5399]
[1765317013711,163.3852,137.7,137.6,6.5399]
[1765317013916,61.72,137.7,137.61,3.17]